bitfinex-derivatives/quotes_ETHF0:USTF0_20241104
["timestamp","ask_amount","ask_price","bid_price","bid_amount"]
[1730759641194,41.21847,2391.0,2390.9,1.50734151]
[1730759641396,5.26875394,2391.1,2391.0,0.41846]
[1730759641897,0.41846,2391.0,2390.9,2.87911151]
[1730759643900,0.41846,2391.0,2390.9,2.46064151]
[1730759645204,0.41846,2391.0,2390.9,1.50734151]
[1730759645404,0.41846,2391.0,2390.9,1.92582151]
[1730759645698,0.41846,2391.0,2390.9,1.50734151]
[1730759646494,0.41846,2391.0,2390.9,1.92582151]
[1730759646802,0.41846,2391.0,2390.9,1.50734151]
[1730759648294,0.41848,2390.9,2390.8,2.43714151]
[1730759652210,3.62628,2390.9,2390.8,1.50734151]
[1730759652902,7.3902,2390.9,2390.6,1.50734151]
[1730759653102,0.41851,2390.7,2390.6,1.50734151]
[1730759654197,4.60171,2390.7,2390.6,1.50734151]
[1730759654699,0.41859,2390.3,2390.2,0.4186]
[1730759654904,0.41859,2390.3,2390.2,2.48494151]
[1730759656193,0.41858,2390.4,2390.2,2.90353151]
[1730759656400,0.41858,2390.3,2390.2,2.48494151]
[1730759666009,0.41858,2390.3,2390.2,1.50734151]
[1730759666203,0.4186,2390.2,2390.1,1.50734151]
[1730759666401,2.06110394,2390.2,2390.1,1.50734151]
[1730759667605,0.4186,2390.2,2390.1,1.50734151]
[1730759668015,4.6026,2390.2,2390.1,1.50734151]
[1730759668510,6.79260526,2390.2,2390.1,1.50734151]
[1730759668914,6.37400526,2390.2,2389.9,1.50734151]
[1730759669209,0.41864,2390.0,2389.9,1.50734151]
[1730759669510,42.86043205,2390.0,2389.9,1.50734151]
[1730759669710,48.06813205,2390.0,2389.9,1.50734151]
[1730759670504,47.64949205,2390.0,2389.8,1.50734151]
[1730759670810,2.06044205,2389.9,2389.8,1.50734151]
[1730759671108,48.19770526,2390.0,2389.6,1.50734151]
[1730759671314,0.41872,2389.5,2389.4,2.50314151]
[1730759672302,1.34882,2389.5,2389.4,2.50314151]
[1730759673709,1.34882,2389.5,2389.4,1.50734151]
[1730759674007,0.9301,2389.5,2389.2,1.50734151]
[1730759674209,0.41876,2389.3,2389.2,1.50734151]
[1730759675015,3.2078,2389.4,2389.3,0.41876]
[1730759675215,3.62654,2389.4,2389.3,1.34576]
[1730759675413,3.62654,2389.4,2389.3,2.31816]
[1730759675803,3.2078,2389.4,2389.3,6.50376]
[1730759676223,3.2078,2389.4,2389.3,2.31816]
[1730759677014,1.64203685,2389.9,2389.3,6.50376]
[1730759677206,2.06065685,2390.1,2389.8,1.50734151]
[1730759677413,2.06065685,2390.1,2389.6,1.50734151]
[1730759677414,0.41862,2390.1,2390.0,1.50734151]
[1730759677906,5.19860167,2390.3,2390.1,0.41861]
[1730759678106,5.19860167,2390.3,2390.2,1.50734151]
[1730759679409,0.4186,2390.2,2390.0,3.6847645]
[1730759680214,0.4186,2390.2,2390.1,1.41201]
[1730759680411,4.78001167,2390.3,2390.1,1.41201]
[1730759680613,4.78001167,2390.3,2390.2,0.4186]
[1730759680811,0.41858,2390.3,2390.2,3.6847445]
[1730759681015,0.41858,2390.3,2390.2,3.2661445]
[1730759681315,0.41858,2390.3,2390.2,3.6847445]
[1730759681517,0.41858,2390.3,2390.2,3.2661445]
[1730759682013,0.4186,2390.2,2390.0,3.6847645]
[1730759685118,45.64983685,2390.6,2390.0,3.6847645]
[1730759685323,0.41862,2390.1,2390.0,3.6847645]
[1730759685622,0.41862,2390.1,2390.0,3.2661445]
[1730759687610,0.9599,2390.2,2389.9,1.9534]
[1730759687813,0.41864,2390.0,2389.9,1.9534]
[1730759690120,0.9599,2390.2,2389.8,3.2661445]
[1730759690321,0.41865,2389.9,2389.8,3.2661445]
[1730759690623,0.9599,2390.2,2389.8,3.2661445]
[1730759690624,0.41865,2390.0,2389.8,3.6848045]
[1730759691024,0.9599,2390.2,2389.8,3.6848045]
[1730759691025,0.41865,2389.9,2389.8,3.6848045]
[1730759691415,0.9599,2390.2,2389.8,3.6848045]
[1730759691727,0.41864,2390.0,2389.9,0.41865]
[1730759692127,0.9599,2390.2,2389.8,3.2661445]
[1730759692317,0.41863,2390.1,2390.0,3.2661445]
[1730759692522,0.41863,2390.1,2390.0,3.6847845]
[1730759692829,0.9599,2390.2,2389.8,3.2661445]
[1730759693027,2.60193685,2390.2,2389.8,4.5465045]
[1730759693221,0.41865,2390.0,2389.8,4.5465045]
[1730759693627,0.41865,2389.9,2389.8,4.5465045]
[1730759693829,2.60193685,2390.2,2389.8,4.1278445]
[1730759694023,0.41864,2390.0,2389.8,4.5465045]
[1730759694821,2.60193685,2390.2,2389.8,4.1278445]
[1730759695030,0.41865,2389.9,2389.8,4.1278445]
[1730759700232,1.64203685,2390.0,2389.5,4.2180445]
[1730759700528,0.4187,2389.7,2389.6,0.55609268]
[1730759700831,0.4187,2389.7,2389.3,3.2661445]
[1730759700832,0.41874,2389.4,2389.3,3.2661445]
[1730759701034,0.41874,2389.4,2389.3,5.9961783]
[1730759701231,41.21874,2389.4,2389.3,5.9961783]
[1730759701533,41.21874,2389.4,2389.3,4.23806569]
[1730759701735,41.21874,2389.4,2389.3,3.81943513]
[1730759701933,1.64203685,2389.7,2389.3,3.81943513]
[1730759702236,0.41873,2389.5,2389.3,2.17365]
[1730759702433,0.41874,2389.4,2389.3,2.17365]
[1730759702733,0.41874,2389.4,2389.3,2.73067307]
[1730759702934,0.41874,2389.4,2389.3,1.50783187]
[1730759703233,3.00577685,2389.4,2389.3,1.50783187]
[1730759703830,1.36374,2389.4,2389.3,1.50783187]
[1730759704024,3.55374526,2389.4,2389.3,1.50783187]
[1730759704233,1.36374,2389.4,2389.3,1.50783187]
[1730759705935,0.41876,2389.3,2389.0,1.50783187]
[1730759706136,0.41879,2389.1,2389.0,1.50783187]
[1730759708133,0.41879,2389.1,2388.9,1.50783187]
[1730759708134,5.82803738,2389.1,2388.9,1.50783187]
[1730759708442,2.06124738,2389.0,2388.9,1.50783187]
[1730759708735,4.60441,2389.0,2388.9,1.50783187]
[1730759708935,6.24594814,2389.0,2388.9,1.50783187]
[1730759709335,6.24594814,2389.0,2388.5,1.50783187]
[1730759709336,0.41888,2388.6,2388.5,1.50783187]
[1730759709535,4.08816547,2388.9,2388.4,0.896]
[1730759709732,0.41893,2388.3,2388.2,0.8543]
[1730759709934,0.41897,2388.1,2388.0,2.40383187]
[1730759710335,0.41897,2388.1,2388.0,1.50783187]
[1730759711131,0.41902,2387.8,2387.7,2.40383187]
[1730759711329,0.41902,2387.8,2387.7,0.896]
[1730759711533,0.41905,2387.7,2387.5,0.9279]
[1730759711740,4.1484,2388.1,2387.5,0.9279]
[1730759711928,0.41906,2387.6,2387.5,0.9279]
[1730759712730,0.41907,2387.5,2387.3,0.9118]
[1730759712934,3.2078,2387.8,2387.2,6.47744985]
[1730759713129,3.2078,2387.8,2387.5,3.26964985]
[1730759713130,0.41902,2387.8,2387.5,3.26964985]
[1730759713335,4.1484,2388.1,2387.5,3.26964985]
[1730759713532,0.41905,2387.7,2387.5,3.26964985]
[1730759713928,0.41906,2387.6,2387.5,3.26964985]
[1730759714338,0.41899,2388.0,2387.6,0.41906]
[1730759714534,4.1484,2388.1,2387.5,3.68871985]
[1730759714535,0.41903,2387.8,2387.5,3.68871985]
[1730759715243,4.1484,2388.1,2387.5,3.26964985]
[1730759715441,0.41899,2388.0,2387.5,3.68870985]
[1730759715645,0.41901,2387.9,2387.6,0.41905]
[1730759716136,4.1484,2388.1,2387.7,4.16994985]
[1730759716137,3.2078,2388.1,2387.7,4.16994985]
[1730759716441,0.41896,2388.2,2387.9,0.419]
[1730759716638,0.41897,2388.1,2387.7,5.06434985]
[1730759716838,0.41897,2388.1,2387.8,0.41901]
[1730759717040,0.41899,2388.0,2387.8,0.41901]
[1730759717244,0.41898,2388.1,2387.8,0.41901]
[1730759717746,0.41893,2388.3,2387.7,5.06434985]
[1730759717940,0.41893,2388.3,2388.0,0.41898]
[1730759718138,0.9392,2388.4,2387.8,3.2078]
[1730759718334,0.41894,2388.3,2388.0,0.41897]
[1730759718640,1.35812,2388.4,2387.9,3.26964985]
[1730759718835,1.35812,2388.4,2388.1,0.41896]
[1730759719840,0.41894,2388.3,2388.0,0.41897]
[1730759720143,0.41894,2388.3,2388.1,0.41897]
[1730759720339,1.35812,2388.4,2388.0,0.41899]
[1730759720540,1.35812,2388.4,2387.9,3.26964985]
[1730759720742,0.9392,2388.4,2388.2,0.41895]
[1730759720946,0.41891,2388.5,2388.2,0.41895]
[1730759721145,0.41892,2388.4,2388.2,0.41895]
[1730759721342,3.2078,2388.6,2387.9,4.79764985]
[1730759721560,47.38994151,2388.8,2388.1,3.2078]
[1730759721750,47.38994151,2388.8,2388.5,0.41889]
[1730759721945,6.58994151,2388.8,2388.6,0.41887]
[1730759722148,6.58994151,2388.8,2388.4,3.26964985]
[1730759722451,6.58994151,2388.8,2388.7,0.41886]
[1730759722648,4.78324151,2388.8,2388.7,0.41886]
[1730759722839,0.41883,2388.9,2388.7,0.41886]
[1730759723240,3.2078,2389.0,2388.4,3.26964985]
[1730759723444,3.62662,2389.0,2388.8,0.41884]
[1730759723646,3.62662,2389.0,2388.4,3.26964985]
[1730759723845,0.41884,2388.9,2388.4,3.26964985]
[1730759724150,0.41884,2388.9,2388.7,0.41886]
[1730759725152,3.62662,2389.0,2388.8,0.41885]
[1730759725337,0.41883,2388.9,2388.7,0.41886]
[1730759725739,0.41883,2388.9,2388.4,3.26964985]
[1730759725943,3.62662,2389.0,2388.5,0.4189]
[1730759726142,3.62662,2389.0,2388.8,0.41885]
[1730759726345,3.2078,2389.0,2388.8,0.41883]
[1730759726545,2.22547,2389.3,2389.0,0.4188]
[1730759726749,2.22547,2389.3,2389.1,0.41879]
[1730759727452,43.02547,2389.3,2389.1,0.41879]
[1730759728554,43.02547,2389.3,2389.0,1.8741]
[1730759728757,42.6067,2389.3,2389.0,1.8741]
[1730759728965,43.02547,2389.3,2389.1,0.41879]
[1730759729163,40.8,2389.3,2389.1,0.41878]
[1730759729459,0.41875,2389.4,2389.2,0.41878]
[1730759729854,41.21875,2389.4,2389.2,0.41878]
[1730759730257,41.21875,2389.4,2389.0,1.8741]
[1730759730554,0.41877,2389.3,2389.1,0.41878]
[1730759731056,0.41876,2389.3,2389.1,0.41879]
[1730759731758,40.8,2389.4,2389.0,1.8741]
[1730759731960,40.8,2389.4,2389.3,0.41876]
[1730759732360,41.21874,2389.4,2389.2,0.41876]
[1730759734156,40.8,2389.4,2389.3,0.41876]
[1730759734559,40.8,2389.4,2389.3,4.60436]
[1730759734761,40.8,2389.4,2389.3,4.1856]
[1730759734968,40.8,2389.4,2389.3,4.60436]
[1730759736262,0.41872,2389.5,2389.3,4.60436]
[1730759736465,0.41872,2389.5,2389.3,0.41876]
[1730759736965,41.21872,2389.5,2389.3,0.41876]
[1730759737771,0.41874,2389.4,2389.2,3.2078]
[1730759737970,41.21873,2389.5,2389.3,0.41874]
[1730759738969,40.8,2389.5,2389.4,0.41874]
[1730759739571,41.21872,2389.5,2389.4,0.41874]
[1730759740268,41.21872,2389.5,2389.0,2.69837431]
[1730759740473,41.21872,2389.5,2389.3,0.41875]
[1730759741764,1.8395,2389.7,2389.0,2.69837431]
[1730759741966,1.8395,2389.7,2389.5,0.41871]
[1730759741967,2.2582,2389.7,2389.5,0.41871]
[1730759742165,2.2582,2389.7,2389.6,0.41871]
[1730759742370,1.8395,2389.7,2389.6,0.41871]
[1730759742869,41.21866,2389.9,2389.5,3.2078]
[1730759743068,42.15806,2389.9,2389.7,0.41867]
[1730759743368,41.7394,2389.9,2389.7,0.41867]
[1730759743873,41.7394,2389.9,2389.8,0.41867]
[1730759744072,41.7394,2389.9,2389.6,0.8546]
[1730759744277,42.15806,2389.9,2389.7,0.41869]
[1730759744966,41.7394,2389.9,2389.6,0.8546]
[1730759745274,41.7394,2389.9,2389.5,3.2078]
[1730759745275,0.41869,2389.7,2389.5,3.62651]
[1730759745469,0.41871,2389.6,2389.5,3.2078]
[1730759746464,0.41871,2389.6,2389.5,3.62652]
[1730759747572,0.41871,2389.6,2389.5,3.2078]
[1730759749576,0.41871,2389.6,2389.4,0.41873]
[1730759749577,0.41871,2389.6,2389.2,3.26964985]
[1730759749776,0.9001,2389.8,2389.2,3.26964985]
[1730759750068,1.35903,2389.5,2389.4,0.41873]
[1730759750272,41.7403,2389.5,2389.4,0.41873]
[1730759751566,41.7403,2389.5,2389.1,4.0962]
[1730759751769,2.08015,2389.4,2389.3,0.41876]
[1730759753586,1.6614,2389.4,2389.1,3.2078]
[1730759753876,0.41876,2389.3,2389.2,0.41877]
[1730759756378,0.41876,2389.3,2389.1,3.62658]
[1730759756569,0.41878,2389.2,2389.1,3.62658]
[1730759758078,0.41878,2389.2,2389.1,3.2078]
[1730759758276,2.70829,2389.4,2388.8,0.41883]
[1730759758477,0.41883,2388.9,2388.8,0.41883]
[1730759760378,4.8692,2389.4,2388.6,3.2078]
[1730759760582,0.41886,2388.7,2388.6,3.2078]
[1730759760986,0.41895,2388.3,2388.1,0.41896]
[1730759761277,1.5233,2388.2,2388.1,0.41896]
[1730759761476,1.5233,2388.2,2387.9,5.3286252]
[1730759761477,2.74396,2388.2,2388.0,0.41898]
[1730759761675,2.74396,2388.2,2387.9,5.19363985]
[1730759761676,0.41897,2388.1,2387.9,5.19363985]
[1730759761982,0.41897,2388.1,2387.9,0.41899]
[1730759762286,0.41899,2388.0,2387.8,3.62681]
[1730759762681,41.21899,2388.0,2387.8,3.62681]
[1730759763178,41.21899,2388.0,2387.8,3.2078]
[1730759763179,40.8,2388.0,2387.8,3.2078]
[1730759763382,0.419,2387.9,2387.8,3.2078]
[1730759763979,40.8,2388.0,2387.5,3.26964985]
[1730759764284,0.41903,2387.8,2387.5,0.41907]
[1730759764478,0.41903,2387.8,2387.6,0.41905]
[1730759764682,0.7554,2387.7,2387.6,0.41905]
[1730759764888,0.7554,2387.7,2387.4,3.2078]
[1730759765073,1.22896,2387.6,2387.4,3.62688]
[1730759765679,2.02426,2387.6,2387.4,3.62688]
[1730759765882,2.02426,2387.6,2387.4,3.62689]
[1730759766185,5.34570574,2388.1,2388.0,0.41899]
[1730759766186,0.7358,2388.1,2388.0,0.41899]
[1730759766877,0.41895,2388.3,2388.1,0.41897]
[1730759767185,2.74423,2388.4,2388.2,0.41894]
[1730759767386,0.41893,2388.3,2388.1,0.41896]
[1730759768590,2.3253,2388.4,2387.8,7.23764985]
[1730759768785,2.74423,2388.4,2387.8,7.23764985]
[1730759768979,2.74423,2388.4,2388.1,0.41895]
[1730759770583,2.3253,2388.4,2387.9,3.2078]
[1730759770882,2.74422,2388.4,2388.2,0.41894]
[1730759771090,2.74422,2388.4,2387.9,3.2078]
[1730759771091,2.3253,2388.4,2387.9,3.2078]
[1730759771288,2.3253,2388.4,2388.3,0.41893]
[1730759771490,2.74422,2388.4,2388.2,0.41894]
[1730759771681,2.74422,2388.4,2387.9,3.2078]
[1730759771682,2.3253,2388.4,2387.9,3.2078]
[1730759771881,2.74422,2388.4,2388.2,0.41895]
[1730759773189,2.74422,2388.4,2388.2,0.41894]
[1730759773788,2.74422,2388.4,2388.3,0.41893]
[1730759773789,1.5358,2388.4,2388.3,0.41893]
[1730759774189,0.7595,2388.7,2388.2,3.2078]
[1730759774494,1.17837,2388.7,2388.5,0.41889]
[1730759774793,0.41888,2388.6,2388.4,0.41891]
[1730759775390,1.17837,2388.7,2388.5,0.41889]
[1730759777298,0.7595,2388.7,2388.6,0.41888]
[1730759777502,1.17836,2388.7,2388.5,0.41889]
[1730759777991,0.7595,2388.7,2388.6,0.41888]
[1730759778191,42.3328,2388.9,2388.3,4.82354985]
[1730759778501,40.8,2388.9,2388.8,0.41885]
[1730759778715,0.7969,2389.0,2388.9,0.41883]
[1730759778993,3.2078,2389.1,2389.0,0.41881]
[1730759779202,5.20121575,2389.3,2389.1,0.41878]
[1730759779897,46.00121575,2389.3,2389.1,0.41878]
[1730759780102,41.21876,2389.3,2389.1,0.41878]
[1730759780293,40.8,2389.3,2389.0,0.7658]
[1730759780489,0.41878,2389.2,2389.0,1.1846]
[1730759780892,0.41878,2389.2,2389.1,0.41879]
[1730759781304,0.41878,2389.2,2389.0,0.7658]
[1730759781497,0.41878,2389.2,2389.0,1.1846]
[1730759781698,40.8,2389.3,2389.0,0.7658]
[1730759781900,0.41878,2389.2,2389.0,1.1846]
[1730759783299,0.41878,2389.2,2389.1,0.41879]
[1730759783699,0.41878,2389.2,2389.0,0.7658]
[1730759783905,0.41878,2389.2,2389.0,1.1846]
[1730759784104,40.8,2389.3,2389.0,0.7658]
[1730759784304,41.21876,2389.3,2389.1,0.41878]
[1730759784493,41.21876,2389.3,2389.0,0.7658]
[1730759784696,0.41877,2389.3,2389.1,0.41879]
[1730759784891,0.41877,2389.3,2389.0,0.7658]
[1730759784892,0.41877,2389.3,2389.2,0.41878]
[1730759785204,0.41877,2389.3,2389.1,0.41879]
[1730759785701,41.21875,2389.4,2389.2,0.41877]
[1730759786301,0.41876,2389.3,2389.2,0.41877]
[1730759786500,41.21875,2389.4,2389.2,0.41877]
[1730759786806,40.8,2389.4,2389.3,0.41876]
[1730759787501,1.09044574,2389.8,2389.3,4.1856]
[1730759787706,1.5542,2389.8,2389.4,0.809]
[1730759787905,1.5542,2389.8,2389.6,0.41869]
[1730759787906,40.8,2389.7,2389.6,0.41869]
[1730759789995,40.8,2389.7,2389.6,4.60349]
[1730759790595,40.8,2389.7,2389.6,0.41869]
[1730759790795,0.7927,2389.9,2389.8,0.41867]
[1730759791203,41.5927,2389.9,2389.8,0.41867]
[1730759792001,42.01135,2389.9,2389.7,0.41867]
[1730759792197,42.01135,2389.9,2389.5,4.04144985]
[1730759792198,41.5927,2389.9,2389.8,0.41867]
[1730759792595,0.41865,2390.0,2389.8,0.41867]
[1730759792903,0.41865,2390.0,2389.5,7.24924985]
[1730759792904,1.5542,2390.1,2389.7,3.26964985]
[1730759793102,42.3542,2390.1,2389.7,3.26964985]
[1730759793403,1.97282,2390.1,2389.9,0.41864]
[1730759793593,0.7969,2390.2,2389.9,3.26964985]
[1730759793907,1.21551,2390.2,2389.9,3.26964985]
[1730759794098,1.21551,2390.2,2390.1,0.41862]
[1730759794296,0.7969,2390.2,2390.1,0.41862]
[1730759794710,1.2155,2390.2,2390.1,0.41862]
[1730759794897,1.2155,2390.2,2390.0,0.41862]
[1730759796002,0.7969,2390.2,2389.9,3.26964985]
[1730759796207,0.7969,2390.2,2390.1,0.41862]
[1730759797004,1.2155,2390.2,2390.1,0.41862]
[1730759797198,0.7969,2390.2,2390.1,0.41862]
[1730759799200,41.21859,2390.3,2390.1,0.41862]
[1730759801104,40.8,2390.3,2390.2,3.68824985]
[1730759801712,1.5515,2390.4,2390.3,0.41858]
[1730759802106,42.3515,2390.4,2390.3,0.41858]
[1730759803110,42.77007,2390.4,2390.3,0.41858]
[1730759803718,42.02197,2390.4,2390.3,0.41858]
[1730759803914,41.6034,2390.4,2390.3,0.41858]
[1730759804217,41.6034,2390.4,2390.2,3.26964985]
[1730759804218,1.19264,2390.6,2390.5,0.41855]
[1730759804508,1.96041,2390.7,2390.6,0.41853]
[1730759805213,1.5419,2390.7,2390.6,0.41853]
[1730759805608,40.8,2390.8,2390.7,0.41851]
[1730759805909,41.21851,2390.8,2390.5,0.7918]
[1730759806209,0.41849,2390.9,2390.5,0.7918]
[1730759806407,1.19537,2391.0,2390.8,0.4185]
[1730759806811,0.41848,2390.9,2390.6,3.26964985]
[1730759807023,0.41849,2390.9,2390.8,0.41849]
[1730759807212,1.19537,2391.0,2390.6,3.26964985]
[1730759807407,0.7769,2391.0,2390.9,0.41848]
[1730759807916,1.19536,2391.0,2390.9,0.41848]
[1730759808212,1.19536,2391.0,2390.7,3.9657]
[1730759808401,1.19536,2391.0,2390.9,0.41848]
[1730759808402,0.7769,2391.0,2390.9,0.41848]
[1730759809408,1.19536,2391.0,2390.9,0.41848]
[1730759809808,0.7769,2391.0,2390.9,0.41848]
[1730759810312,1.19536,2391.0,2390.9,0.41848]
[1730759810509,0.7769,2391.0,2390.9,0.41848]
[1730759811415,1.57,2391.1,2391.0,0.41846]
[1730759811908,7.98554633,2391.7,2391.0,4.1824]
[1730759812210,2.4787,2391.5,2391.1,3.26964985]
[1730759812407,2.4787,2391.5,2391.1,4.06194985]
[1730759812607,2.4787,2391.5,2391.4,0.41839]
[1730759813816,45.57774633,2391.7,2391.4,7.45124985]
[1730759814011,0.41836,2391.6,2391.4,3.68802985]
[1730759815108,0.41836,2391.6,2391.5,0.41837]
[1730759815517,0.41836,2391.6,2391.4,3.26964985]
[1730759815719,45.57774633,2391.7,2391.4,7.45124985]
[1730759816016,0.41833,2391.8,2391.7,0.41834]
[1730759816210,0.41833,2391.8,2391.6,0.41834]
[1730759816416,3.62609,2392.0,2391.7,3.68798985]
[1730759816612,3.62609,2392.0,2391.7,3.26964985]
[1730759816814,0.4183,2391.9,2391.8,0.41831]
[1730759817021,40.8,2391.9,2391.8,0.41831]
[1730759817216,41.2183,2391.9,2391.8,4.59911]
[1730759817413,41.2183,2391.9,2391.8,4.1808]
[1730759818715,41.2183,2391.9,2391.8,4.59912]
[1730759818716,40.8,2391.9,2391.8,4.59912]
[1730759819019,41.2183,2391.9,2391.8,4.1808]
[1730759819217,40.8,2391.9,2391.7,3.26964985]
[1730759819421,0.41834,2391.7,2391.6,3.2078]
[1730759820016,2.05724,2391.7,2391.6,3.2078]
[1730759820415,6.23884,2391.7,2391.6,1.9482]
[1730759820619,1.04591,2391.6,2391.0,3.68809985]
[1730759820922,0.41844,2391.1,2391.0,3.26964985]
[1730759823323,0.41844,2391.1,2391.0,3.68810985]
[1730759823512,0.41844,2391.1,2391.0,3.26964985]
[1730759823917,0.41844,2391.1,2391.0,3.68810985]
[1730759824527,1.17544,2391.2,2391.0,3.68810985]
[1730759824829,0.41844,2391.1,2391.0,3.26964985]
[1730759825122,0.41844,2391.1,2391.0,3.68810985]
[1730759825333,0.41844,2391.1,2391.0,3.26964985]
[1730759825622,1.17543,2391.2,2391.1,0.41844]
[1730759826033,1.17543,2391.2,2391.0,3.68808985]
[1730759826222,0.757,2391.2,2391.1,0.41844]
[1730759826423,0.7988,2391.3,2391.2,0.41843]
[1730759826717,0.7988,2391.3,2391.2,3.68807985]
[1730759826927,0.7813,2391.7,2391.2,7.45124985]
[1730759827127,0.41839,2391.4,2391.3,0.4184]
[1730759827323,4.0409,2391.8,2391.6,0.41835]
[1730759827324,3.2078,2391.8,2391.6,0.41835]
[1730759827631,1.04558,2392.4,2391.6,7.45044985]
[1730759827632,1.5908,2392.0,2391.6,7.45044985]
[1730759827928,1.5908,2392.0,2391.6,3.26964985]
[1730759828129,1.5908,2392.0,2391.8,0.41831]
[1730759828314,1.5908,2392.0,2391.9,0.4183]
[1730759828522,1.5908,2392.0,2391.9,3.68794985]
[1730759828922,3.2078,2392.1,2391.9,7.45044985]
[1730759829122,3.62607,2392.1,2392.0,0.41829]
[1730759829325,3.62607,2392.1,2391.9,3.26964985]
[1730759829624,40.8,2392.4,2391.9,7.45044985]
[1730759829828,41.21822,2392.4,2392.2,0.41824]
[1730759830032,41.21822,2392.4,2392.3,0.41823]
[1730759830219,6.01761,2392.5,2392.3,0.41823]
[1730759830532,5.5994,2392.5,2392.3,0.41823]
[1730759830731,5.5994,2392.5,2391.9,4.09474985]
[1730759830940,5.5994,2392.5,2392.3,0.41823]
[1730759830941,6.01761,2392.5,2392.3,0.41823]
[1730759831233,6.0176,2392.5,2392.3,0.41823]
[1730759831628,6.01761,2392.5,2392.3,0.41822]
[1730759831933,4.7986,2392.5,2392.4,0.41822]
[1730759832928,0.41822,2392.4,2392.3,0.41823]
[1730759833231,2.00901,2392.5,2392.3,0.41823]
[1730759835433,1.5908,2392.5,2392.3,0.41823]
[1730759835634,0.41822,2392.4,2392.3,0.41823]
[1730759836135,2.00901,2392.5,2392.3,0.41823]
[1730759836330,2.00901,2392.5,2392.3,0.41822]
[1730759836528,1.5908,2392.5,2392.4,0.41822]
[1730759836724,2.009,2392.5,2392.3,0.41822]
[1730759837230,1.5908,2392.5,2392.3,3.26964985]
[1730759837434,1.5908,2392.5,2392.3,3.68786985]
[1730759837435,2.009,2392.5,2392.3,3.68786985]
[1730759838136,2.009,2392.5,2392.3,3.26964985]
[1730759838339,2.009,2392.5,2392.3,3.68786985]
[1730759838835,1.5908,2392.5,2392.3,3.26964985]
[1730759839026,1.5908,2392.5,2392.4,0.41822]
[1730759840237,2.009,2392.5,2392.3,3.68786985]
[1730759840537,40.8,2392.4,2392.3,3.68786985]
[1730759842231,4.77550911,2392.8,2392.7,0.41816]
[1730759842434,4.77550911,2392.8,2392.7,3.68780985]
[1730759843027,3.2078,2392.9,2392.7,3.68780985]
[1730759843028,3.2078,2392.9,2392.7,3.26964985]
[1730759843233,3.2078,2392.9,2392.8,0.41815]
[1730759845336,1.4885,2393.0,2392.7,3.26964985]
[1730759845337,1.4885,2393.0,2392.9,0.41813]
[1730759845535,1.4885,2393.0,2392.9,3.68777985]
[1730759845734,0.41807,2393.3,2392.9,7.44884985]
[1730759845941,0.7581,2393.3,2393.2,3.68772985]
[1730759846439,0.7406,2393.4,2393.3,0.41806]
[1730759846844,0.7581,2393.6,2393.3,4.1784]
[1730759847043,0.7581,2393.6,2393.5,0.41802]
[1730759847233,0.418,2393.7,2393.5,0.41802]
[1730759847545,0.7406,2393.8,2393.7,0.41799]
[1730759847734,0.7406,2393.8,2393.7,3.68763985]
[1730759848130,1.15857,2393.8,2393.7,3.68763985]
[1730759848543,0.7406,2393.8,2393.7,3.68763985]
[1730759849943,1.17605,2393.9,2393.8,0.41797]
[1730759850442,1.17605,2393.9,2393.7,3.68762985]
[1730759850443,1.17606,2393.9,2393.7,3.68762985]
[1730759850645,0.41797,2393.8,2393.7,3.26964985]
[1730759855641,41.96031,2394.2,2394.0,0.41793]
[1730759855855,41.96031,2394.2,2394.1,3.26964985]
[1730759856642,3.2078,2394.4,2394.3,0.41788]
[1730759859342,3.2078,2394.4,2394.3,4.59468]
[1730759859643,1.90832,2394.7,2394.3,4.1768]
[1730759859839,1.4905,2394.7,2394.3,3.26964985]
[1730759860251,0.41787,2394.4,2394.3,3.26964985]
[1730759861148,0.41792,2394.1,2394.0,3.26964985]
[1730759868148,3.62572,2394.1,2394.0,3.26964985]
[1730759868746,3.2078,2394.1,2393.8,3.26964985]
[1730759868951,0.41795,2393.9,2393.8,3.26964985]
[1730759871159,0.41795,2393.9,2393.8,3.68760985]
[1730759871353,41.21795,2394.0,2393.8,3.68760985]
[1730759871658,3.62573,2394.1,2393.9,0.41795]
[1730759872056,44.42573,2394.1,2393.9,0.41795]
[1730759872255,44.42573,2394.1,2393.9,0.41794]
[1730759872457,44.42573,2394.1,2393.8,3.26964985]
[1730759872662,44.42573,2394.1,2393.9,0.41795]
[1730759873561,3.62573,2394.1,2393.9,0.41795]
[1730759873859,0.41794,2394.0,2393.8,3.68760985]
[1730759874060,0.41794,2394.0,2393.9,0.41795]
[1730759874258,3.2078,2394.1,2393.9,0.41795]
[1730759874461,3.62573,2394.1,2393.9,0.41795]
[1730759874661,3.62573,2394.1,2393.8,3.26964985]
[1730759874662,3.2078,2394.1,2394.0,0.41794]
[1730759874862,0.41794,2394.0,2393.9,0.41795]
[1730759875063,3.62573,2394.1,2393.9,0.41795]
[1730759875860,3.2078,2394.1,2393.9,0.41795]
[1730759876061,0.41794,2394.0,2393.9,0.41795]
[1730759876666,0.41792,2394.1,2394.0,0.41793]
[1730759877054,0.41792,2394.1,2393.8,3.26964985]
[1730759877260,1.4942,2394.2,2393.9,0.41795]
[1730759877466,0.41793,2394.1,2393.9,0.41795]
[1730759878064,1.4942,2394.2,2393.9,0.41795]
[1730759878370,0.41793,2394.1,2393.9,0.41795]
[1730759878662,0.41793,2394.1,2394.0,0.41794]
[1730759878866,1.4942,2394.2,2393.9,0.41795]
[1730759878867,0.41794,2394.0,2393.9,0.41795]
[1730759879354,1.4942,2394.2,2393.8,3.26964985]
[1730759879763,1.91211,2394.2,2394.1,0.41792]
[1730759880463,1.91211,2394.2,2394.0,0.41792]
[1730759880661,1.91211,2394.2,2393.9,0.7161]